bitfinex-derivatives/quotes_SOLF0:USTF0_20241029
["timestamp","ask_amount","ask_price","bid_price","bid_amount"]
[1730195134001,63.5,181.26,181.25,2.7606]
[1730195134203,3.82,181.26,181.23,5.93941466]
[1730195135307,3.82,181.26,181.25,2.7606]
[1730195136006,8.69961466,181.29,181.23,5.93941466]
[1730195136213,3.82,181.28,181.26,2.7603]
[1730195138015,3.82,181.28,181.23,5.93941466]
[1730195138213,3.82,181.28,181.27,2.7603]
[1730195141606,3.82,181.28,181.18,349.5234]
[1730195141814,2.7606,181.26,181.18,349.5234]
[1730195142113,2.7606,181.26,181.22,5.93941466]
[1730195142312,8.70011466,181.25,181.23,2.7608]
[1730195142508,3.82,181.24,181.23,2.7608]
[1730195143218,3.82,181.24,181.18,344.0]
[1730195143521,5.93941466,181.2,181.18,344.0]
[1730195143824,3.82,181.19,181.18,344.0]
[1730195144918,9.75941466,181.19,181.18,344.0]
[1730195145420,12.52101466,181.19,181.18,344.0]
[1730195146015,9.75941466,181.19,181.13,2.7624]
[1730195146216,5.93941466,181.16,181.13,2.7624]
[1730195146419,3.82,181.15,181.1,5.93941466]
[1730195146619,3.82,181.15,181.14,2.7623]
[1730195150828,9.75941466,181.15,181.09,8.45661466]
[1730195151924,9.75941466,181.15,181.14,2.7623]
[1730195153021,3.82,181.15,181.14,2.7623]
[1730195154218,9.75941466,181.15,181.14,2.7623]
[1730195155426,3.82,181.15,181.14,2.7623]
[1730195157222,5.93941466,181.18,181.16,2.762]
[1730195157423,3.82,181.17,181.16,2.762]
[1730195157623,9.75941466,181.17,181.1,5.93941466]
[1730195158133,8.70161466,181.15,181.09,2.5172]
[1730195158328,5.93941466,181.15,181.09,2.5172]
[1730195158827,8.70161466,181.15,181.12,2.7625]
[1730195159335,8.70161466,181.15,181.13,2.7624]
[1730195161132,5.93941466,181.15,181.08,5.93941466]
[1730195161329,5.93941466,181.12,181.11,2.7627]
[1730195161530,9.75941466,181.12,181.11,2.7627]
[1730195163029,9.75941466,181.12,181.11,2.7628]
[1730195166036,9.75941466,181.12,181.03,2.5159]
[1730195166338,5.93941466,181.11,181.1,2.7629]
[1730195171940,76.26,181.22,181.03,2.5159]
[1730195172245,5.93941466,181.17,181.11,5.93941466]
[1730195172445,3.82,181.16,181.11,5.93941466]
[1730195172638,3.82,181.16,181.15,2.7622]
[1730195172840,9.75941466,181.16,181.15,2.7622]
[1730195174843,12.52151466,181.16,181.13,2.7624]
[1730195175039,5.93941466,181.14,181.13,2.7624]
[1730195177642,5.93941466,181.14,181.07,5.93941466]
[1730195177842,5.93941466,181.12,181.07,5.93941466]
[1730195178049,3.82,181.11,181.07,5.93941466]
[1730195179346,3.82,181.11,181.1,2.7629]
[1730195194560,1.2999,181.21,181.08,5.93941466]
[1730195194756,5.93941466,181.15,181.14,2.7623]
[1730195194959,9.75941466,181.15,181.14,2.7623]
[1730195195459,5.93941466,181.15,181.14,2.7623]
[1730195195657,9.75941466,181.15,181.14,2.7623]
[1730195199565,9.75941466,181.15,181.08,5.93941466]
[1730195199867,8.70191466,181.13,181.07,5.93941466]
[1730195200667,8.70191466,181.13,181.11,2.7627]
[1730195201667,5.93941466,181.13,181.12,2.7626]
[1730195203064,6.5822,181.15,181.09,5.93941466]
[1730195203269,23.4225,181.21,181.13,2.7623]
[1730195203270,5.93941466,181.14,181.13,2.7623]
[1730195203458,9.75941466,181.14,181.13,2.7623]
[1730195207870,3.82,181.14,181.11,5.93941466]
[1730195208868,5.93941466,181.16,181.15,2.7622]
[1730195209063,9.75941466,181.16,181.15,2.7622]
[1730195210677,5.93941466,181.16,181.09,2.4422]
[1730195210873,5.93941466,181.14,181.13,2.7625]
[1730195220181,2.82505702,181.24,181.12,5.93941466]
[1730195220382,5.93941466,181.22,181.16,5.93941466]
[1730195220681,3.82,181.23,181.19,5.93941466]
[1730195221379,3.82,181.23,181.22,2.7611]
[1730195221774,9.75941466,181.23,181.2,2.7613]
[1730195225677,9.75941466,181.23,181.21,2.7612]
[1730195226283,3.82,181.23,181.21,2.7612]
[1730195226578,8.69991466,181.26,181.23,2.7609]
[1730195226889,3.82,181.25,181.23,2.7609]
[1730195227484,9.75941466,181.25,181.23,2.7609]
[1730195227788,3.82,181.24,181.23,2.7609]
[1730195228387,9.75941466,181.24,181.23,2.7609]
[1730195230086,3.82,181.24,181.23,2.7609]
[1730195230280,2.5261,181.29,181.2,5.93941466]
[1730195230484,5.93941466,181.27,181.25,2.7606]
[1730195231285,8.70001466,181.26,181.23,2.7608]
[1730195231485,5.93941466,181.24,181.23,2.7608]
[1730195231683,9.75941466,181.24,181.23,2.7608]
[1730195232994,3.82,181.24,181.23,2.7608]
[1730195234088,9.75941466,181.24,181.16,1.202]
[1730195234287,8.70081466,181.21,181.18,2.7616]
[1730195234592,3.82,181.2,181.16,1.202]
[1730195235088,3.82,181.2,181.18,2.7616]
[1730195238087,5.93941466,181.19,181.1,344.0]
[1730195238290,3.82,181.2,181.14,2.7623]
[1730195238291,2.7619,181.17,181.14,2.7623]
[1730195238492,3.82,181.16,181.11,5.93941466]
[1730195238688,3.82,181.15,181.11,5.93941466]
[1730195238890,3.82,181.15,181.14,2.7623]
[1730195239084,3.82,181.15,181.14,8.70171466]
[1730195241487,3.82,181.15,181.14,2.7623]
[1730195245395,3.82,181.15,181.07,3.6153]
[1730195245596,9.75941466,181.15,181.07,3.6153]
[1730195245796,9.75941466,181.15,181.08,5.93941466]
[1730195246001,12.52171466,181.15,181.11,2.7626]
[1730195246601,12.52171466,181.15,181.12,2.7626]
[1730195249800,3.82,181.15,181.11,5.93941466]
[1730195250108,3.82,181.15,181.13,2.7623]
[1730195252704,3.88,181.15,181.11,5.93941466]
[1730195253698,3.88,181.15,181.14,2.7623]
[1730195254905,12.58161466,181.15,181.13,2.7625]
[1730195255106,9.81941466,181.15,181.13,2.7625]
[1730195258402,3.88,181.15,181.14,2.7623]
[1730195259415,3.88,181.15,181.11,5.93941466]
[1730195259614,3.88,181.15,181.13,2.7624]
[1730195260705,9.81941466,181.15,181.13,2.7624]
[1730195262213,9.81941466,181.15,181.09,2.763]
[1730195262214,2.7627,181.12,181.09,2.763]
[1730195262415,3.88,181.11,181.09,2.763]
[1730195265610,6.6428,181.11,181.09,2.763]
[1730195266316,3.88,181.11,181.05,5.93941466]
[1730195266510,2.763,181.1,181.05,5.93941466]
[1730195267211,2.763,181.1,181.07,2.7633]
[1730195267812,2.763,181.1,181.08,2.7632]
[1730195268116,2.763,181.1,181.05,5.93941466]
[1730195268317,2.763,181.1,181.07,2.7633]
[1730195268516,5.93941466,181.1,181.01,347.7782]
[1730195268718,5.93941466,181.08,181.04,2.7638]
[1730195268912,5.93941466,181.06,181.04,2.7638]
[1730195269113,3.88,181.05,181.04,2.7638]
[1730195269314,3.88,181.05,181.01,2.4958]
[1730195269813,9.81941466,181.05,180.96,1.2872]
[1730195270018,9.81941466,181.05,180.98,5.93941466]
[1730195271222,5.93941466,181.0,180.87,344.0]
[1730195271521,3.88,180.99,180.94,5.93941466]
[1730195272023,2.7643,181.01,180.94,5.93941466]
[1730195272221,3.88,181.0,180.94,5.93941466]
[1730195272928,3.88,180.99,180.95,5.93941466]
[1730195273221,3.88,180.99,180.97,2.7648]
[1730195276129,3.88,180.99,180.98,2.7648]
[1730195279123,3.88,180.99,180.94,5.93941466]
[1730195279321,5.93941466,180.97,180.91,345.1871]
[1730195279513,5.93941466,180.97,180.91,351.12651466]
[1730195280329,5.93941466,180.97,180.95,2.7651]
[1730195281329,5.93941466,180.97,180.96,2.7651]
[1730195282928,9.91941466,180.97,180.96,2.7651]
[1730195284128,3.98,180.97,180.96,2.7651]
[1730195291333,5.93941466,180.98,180.97,2.7649]
[1730195291632,9.91941466,180.98,180.97,2.7649]
[1730195293823,3.9895,181.05,180.96,2.765]
[1730195294029,1.2257,181.05,180.95,5.93941466]
[1730195294235,1.2257,181.05,180.97,5.93941466]
[1730195294444,3.98,181.04,181.03,2.764]
[1730195294730,9.91941466,181.04,181.03,2.764]
[1730195297533,9.91941466,181.04,180.95,1.2355]
[1730195297534,2.764,181.03,180.97,5.93941466]
[1730195297737,5.93941466,181.01,180.97,5.93941466]
[1730195297939,3.98,181.0,180.97,5.93941466]
[1730195298126,3.98,181.0,180.99,2.7646]
[1730195300137,3.98,181.0,180.95,7.17491466]
[1730195300138,3.98,181.0,180.95,1.2355]
[1730195300343,5.93941466,180.98,180.97,2.7648]
[1730195300542,5.93941466,180.98,180.92,5.93941466]
[1730195301343,5.93941466,180.98,180.95,2.7651]
[1730195301741,5.93941466,180.96,180.91,1.1871]
[1730195301938,3.98,180.95,180.91,1.1871]
[1730195302139,3.98,180.95,180.92,2.7656]
[1730195302444,3.98,180.95,180.91,1.1871]
[1730195303443,3.98,180.95,180.94,2.7654]
[1730195314149,5.93941466,180.98,180.92,5.93941466]
[1730195314345,3.96,180.97,180.92,5.93941466]
[1730195314741,3.96,180.97,180.96,2.7651]
[1730195315750,2.7652,180.96,180.93,2.7654]
[1730195317153,5.93941466,180.95,180.93,2.7654]
[1730195319154,8.70461466,180.96,180.93,2.7654]
[1730195319455,9.89941466,180.97,180.95,2.7651]
[1730195324257,9.89941466,180.97,180.89,1.2582]
[1730195324462,2.7652,180.96,180.93,2.7654]
[1730195324656,2.7652,180.96,180.9,5.93941466]
[1730195324657,9.89941466,180.97,180.9,5.93941466]
[1730195324858,9.89941466,180.97,180.92,5.93941466]
[1730195325470,12.66431466,180.97,180.94,2.7652]
[1730195327653,9.89941466,180.97,180.95,2.7651]
[1730195328164,9.89941466,180.97,180.91,5.93941466]
[1730195329366,9.89941466,180.97,180.95,2.7651]
[1730195339784,9.89941466,180.97,180.91,5.93941466]
[1730195341286,12.66431466,180.97,180.95,2.7652]
[1730195345385,2.7652,180.96,180.89,1.2582]
[1730195345588,2.7652,180.96,180.9,5.93941466]
[1730195347490,2.7652,180.96,180.94,2.7654]
[1730195351692,9.89941466,180.97,180.89,1.2582]
[1730195351897,5.93941466,180.92,180.87,117.75277098]
[1730195352189,5.93941466,180.92,180.87,123.69218564]
[1730195352190,3.92,180.91,180.87,123.69218564]
[1730195352389,3.92,180.91,180.89,2.766]
[1730195352786,3.92,180.91,180.88,5.93941466]
[1730195352989,2.7654,180.94,180.88,5.93941466]
[1730195353196,3.92,180.93,180.88,5.93941466]
[1730195353891,6.6855,180.93,180.89,2.7661]
[1730195354090,3.92,180.93,180.87,117.75277098]
[1730195354293,3.92,180.93,180.88,5.93941466]
[1730195354984,6.6856,180.93,180.9,2.7659]
[1730195357802,6.6856,180.93,180.88,5.93941466]
[1730195357987,6.6856,180.93,180.91,2.7658]
[1730195361600,3.92,180.93,180.87,117.75277098]
[1730195361799,5.93941466,180.92,180.87,117.75277098]
[1730195362600,5.93941466,180.92,180.9,2.7659]
[1730195363794,12.62501466,180.93,180.9,2.7659]
[1730195364597,9.85941466,180.93,180.9,2.7659]
[1730195364801,2.7657,180.92,180.9,2.7659]
[1730195368198,2.7658,180.91,180.89,2.7661]
[1730195368398,2.7658,180.91,180.87,116.51347098]
[1730195370400,2.7658,180.91,180.89,2.7661]
[1730195370904,2.7658,180.92,180.89,2.7661]
[1730195372107,9.85941466,180.93,180.89,2.7661]
[1730195372308,2.7657,180.92,180.89,2.7661]
[1730195374412,9.85941466,180.93,180.89,2.7661]
[1730195374615,2.7658,180.92,180.89,2.7661]
[1730195383334,2.7655,180.94,180.92,2.7656]
[1730195383622,3.88,180.93,180.92,2.7656]
[1730195384719,3.88,180.93,180.91,5.93941466]
[1730195384921,3.88,180.93,180.91,8.70521466]
[1730195386026,6.6456,180.93,180.91,2.7658]
[1730195386213,3.88,180.93,180.89,2.766]
[1730195386814,2.7657,180.92,180.89,2.766]
[1730195387527,2.7657,180.92,180.9,2.766]
[1730195393738,3.88,180.91,180.9,2.766]
[1730195397742,3.88,180.91,180.89,2.7661]
[1730195399038,2.7661,180.9,180.88,8.70571466]
[1730195400950,2.7661,180.9,180.87,119.27977098]
[1730195401141,3.88,180.91,180.87,119.27977098]
[1730195401445,3.88,180.91,180.87,116.51347098]
[1730195401446,5.93941466,180.88,180.87,116.51347098]
[1730195401843,8.70571466,180.88,180.87,116.51347098]
[1730195402244,2.7663,180.88,180.87,116.51347098]
[1730195410245,8.70571466,180.88,180.87,116.51347098]
[1730195411750,2.7669,180.85,180.82,2.7672]
[1730195412050,9.77941466,180.84,180.79,1.2521]
[1730195412350,5.93941466,180.82,180.76,5.93941466]
[1730195412546,2.74938969,180.83,180.78,5.93941466]
[1730195412747,2.72474763,180.86,180.79,5.93941466]
[1730195412960,186.8122239,180.94,180.84,5.93941466]
[1730195413149,5.93941466,180.9,180.84,5.93941466]
[1730195413349,2.7664,180.88,180.84,8.70621466]
[1730195413754,3.84,180.89,180.84,8.70621466]
[1730195413956,2.7665,180.87,180.84,8.70621466]
[1730195414654,2.7665,180.87,180.84,2.7668]
[1730195415558,188.1154239,180.94,180.84,5.93941466]
[1730195415759,5.93941466,180.9,180.84,5.93941466]
[1730195416053,3.84,180.89,180.84,5.93941466]
[1730195416348,6.6061,180.89,180.85,5.93941466]
[1730195417145,6.6061,180.89,180.85,8.70601466]
[1730195417350,6.6061,180.89,180.85,5.93941466]
[1730195417351,3.84,180.89,180.85,5.93941466]
[1730195417856,3.84,180.89,180.86,2.7666]
[1730195418242,6.6062,180.89,180.86,2.7666]
[1730195419847,3.84,180.89,180.85,5.93941466]
[1730195420051,2.7663,180.88,180.85,8.70601466]
[1730195421457,3.84,180.87,180.85,8.70601466]
[1730195423756,2.7662,180.89,180.85,2.7666]
[1730195424067,188.1154239,180.94,180.86,5.93941466]
[1730195424362,186.8122239,180.94,180.88,5.93941466]
[1730195424564,3.84,180.93,180.89,5.93941466]
[1730195425061,9.77941466,180.93,180.87,5.93941466]
[1730195425267,59.76,180.94,180.9,5.93941466]
[1730195425564,3.84,180.92,180.9,5.93941466]
[1730195425760,3.84,180.92,180.89,2.766]
[1730195426063,3.84,180.92,180.91,5.93941466]
[1730195426373,3.84,180.92,180.91,8.70521466]
[1730195427968,3.84,180.92,180.91,5.93941466]
[1730195429367,2.7656,180.93,180.91,5.93941466]
[1730195429664,3.92,180.92,180.91,5.93941466]
[1730195431361,59.76,180.94,180.91,5.93941466]
[1730195431567,3.92,180.93,180.92,5.93941466]
[1730195431863,1.9528,180.93,180.92,8.70511466]
[1730195433366,3.92,180.94,180.93,2.7655]
[1730195433571,3.92,180.94,180.93,8.70491466]
[1730195436064,2.7648,180.98,180.95,2.7652]
[1730195436266,3.92,180.97,180.95,8.70461466]
[1730195437065,3.92,180.97,180.95,5.93941466]
[1730195437266,2.7646,180.99,180.96,2.765]
[1730195437572,3.92,180.98,180.97,5.93941466]
[1730195439267,3.92,180.98,180.97,8.70431466]
[1730195441969,3.92,180.98,180.97,5.93941466]
[1730195442171,3.92,180.98,180.96,2.765]
[1730195443873,3.92,180.97,180.96,2.765]
[1730195444074,2.82642991,181.07,180.95,5.93941466]
[1730195444267,3.92,181.06,181.01,5.93941466]
[1730195444662,5.93941466,181.05,181.0,5.93941466]
[1730195444868,5.93941466,181.03,180.98,2.7647]
[1730195445073,3.92,181.02,180.98,2.7647]
[1730195445472,2.7644,181.01,180.99,5.93941466]
[1730195448787,2.7644,181.01,180.99,8.70401466]
[1730195452472,3.92,181.01,180.99,8.70401466]
[1730195454874,3.92,181.01,181.0,2.7645]
[1730195455286,3.92,181.01,180.99,5.93941466]
[1730195456388,3.92,181.01,180.99,8.70391466]
[1730195459587,2.7645,181.0,180.97,2.7648]
[1730195459788,2.7645,181.0,180.97,8.70421466]
[1730195460189,2.7645,181.0,180.97,5.93941466]
[1730195460386,2.7645,181.0,180.98,2.7648]
[1730195462989,3.92,181.01,180.92,2.5198]
[1730195463193,3.92,181.01,180.96,5.93941466]
[1730195464398,2.7645,181.0,180.98,2.7647]
[1730195465097,2.7645,181.0,180.96,5.93941466]
[1730195465098,3.92,181.01,180.96,5.93941466]
[1730195465306,2.7646,180.99,180.97,2.7649]
[1730195465493,3.92,181.01,180.97,2.7649]
[1730195465697,3.9,181.0,180.96,5.93941466]
[1730195466001,6.6645,181.0,180.98,2.7647]
[1730195466393,3.9,181.0,180.98,2.7647]
[1730195470500,6.6645,181.0,180.98,2.7647]
[1730195472801,9.83941466,181.0,180.92,2.5198]
[1730195473100,9.83941466,181.0,180.96,2.765]
[1730195473702,3.9,181.0,180.98,2.7646]
[1730195473901,5.93941466,181.04,180.98,5.93941466]
[1730195474109,6.664,181.03,181.0,2.7643]
[1730195474804,6.664,181.03,180.98,5.93941466]
[1730195475306,3.9,181.02,180.98,5.93941466]
[1730195475804,3.9,181.02,181.0,8.70371466]
[1730195476704,3.9,181.03,181.01,5.93941466]
[1730195477407,3.9,181.03,181.02,2.7641]
[1730195479105,2.7635,181.06,181.01,5.93941466]
[1730195479312,3.9,181.05,181.03,8.70331466]
[1730195479810,6.6638,181.05,181.02,2.7641]
[1730195482613,2.7641,181.03,181.0,8.70381466]
[1730195482908,2.7641,181.03,181.0,5.93941466]
[1730195483611,9.83941466,181.05,181.0,5.93941466]
[1730195483811,2.7639,181.04,181.01,2.7643]
[1730195488419,2.7636,181.06,181.03,8.70331466]
[1730195488615,3.86,181.05,181.03,8.70331466]
[1730195490218,3.86,181.04,181.03,8.70331466]
[1730195498426,5.93941466,181.09,181.03,8.70331466]
[1730195498427,5.93941466,181.09,181.03,5.93941466]
[1730195498628,2.7635,181.06,181.04,2.7638]
[1730195506530,199.73755582,181.11,181.06,2.7634]
[1730195506731,3.86,181.1,181.08,5.93941466]
[1730195507128,6.623,181.1,181.08,5.93941466]
[1730195508742,6.623,181.1,181.07,2.7633]
[1730195510340,3.86,181.1,181.06,5.93941466]
[1730195511436,2.7632,181.09,181.06,8.70291466]
[1730195515240,2.7636,181.06,181.03,2.764]
[1730195515537,6.6236,181.06,181.03,8.70341466]
[1730195522951,6.6236,181.06,181.03,2.764]
[1730195523152,6.6236,181.06,181.04,5.93941466]
[1730195523756,3.86,181.06,181.05,8.70311466]
[1730195524658,3.84,181.08,181.07,2.7634]
[1730195524858,3.84,181.08,181.07,8.70281466]
[1730195526050,3.84,181.08,181.0,2.3966]
[1730195526257,2.7645,181.0,180.99,344.0]
[1730195526461,3.84,181.0,180.87,3.7594]
[1730195526661,5.93941466,180.98,180.91,5.93941466]
[1730195526851,5.93941466,180.96,180.87,3.7594]
[1730195527052,9.77941466,180.95,180.87,3.7594]
[1730195527356,8.70491466,180.93,180.88,2.7661]
[1730195528255,5.93941466,180.92,180.87,1.1892]
[1730195528454,2.766,180.9,180.85,2.7666]
[1730195528660,2.766,180.9,180.85,5.93941466]
[1730195529062,2.766,180.9,180.86,2.7665]
[1730195529252,3.84,180.91,180.85,5.93941466]
[1730195529853,3.84,180.91,180.87,2.7664]
[1730195530961,6.6058,180.91,180.87,2.7664]
[1730195532159,6.6058,180.91,180.87,8.70581466]
[1730195534152,6.6058,180.91,180.88,2.7663]
[1730195541166,5.93941466,180.94,180.88,5.93941466]
[1730195541766,3.84,180.93,180.9,2.7659]
[1730195543367,5.93941466,180.92,180.9,2.7659]
[1730195543867,6.6055,180.93,180.9,2.7659]
[1730195545664,3.84,180.92,180.91,5.93941466]
[1730195545974,3.84,180.93,180.91,5.93941466]
[1730195546172,3.84,180.93,180.92,2.7657]
[1730195548365,3.84,180.93,180.83,9.3741]
[1730195548560,6.6055,180.93,180.91,2.7658]
[1730195548957,3.84,180.93,180.91,2.7658]
[1730195550968,2.7654,180.94,180.91,2.7658]
[1730195551266,3.92,180.93,180.91,2.7658]
[1730195553478,3.92,180.93,180.92,2.7657]
[1730195562696,3.92,180.93,180.91,2.7657]
[1730195563291,3.92,180.93,180.83,349.5341]
[1730195563292,9.85941466,180.93,180.83,349.5341]
[1730195563491,2.7658,180.92,180.86,5.93941466]
[1730195565391,2.7658,180.92,180.9,2.7659]
[1730195568803,3.92,180.93,180.91,2.7657]
[1730195569704,6.6856,180.93,180.9,8.70531466]
[1730195570701,6.6856,180.93,180.91,2.7658]
[1730195571307,6.6856,180.93,180.88,5.93941466]
[1730195571510,6.6856,180.93,180.9,2.7659]
[1730195573012,5.93941466,180.95,180.92,2.7657]
[1730195573013,2.7653,180.95,180.92,2.7657]
[1730195573202,3.92,180.94,180.9,5.93941466]
[1730195573402,5.93941466,180.97,180.9,5.93941466]
[1730195573603,6.6852,180.96,180.93,2.7654]
[1730195576302,3.92,180.95,180.93,2.7654]
[1730195576503,3.92,180.95,180.92,5.93941466]
[1730195576504,3.92,180.95,180.94,2.7654]
[1730195577097,2.7649,180.98,180.95,2.7652]
[1730195577305,3.92,180.97,180.95,2.7652]
[1730195577707,6.6849,180.97,180.95,2.7652]
[1730195578609,3.92,180.96,180.95,2.7652]
[1730195579503,2.7654,180.95,180.92,2.7656]
[1730195579706,2.7654,180.95,180.91,5.93941466]
[1730195580705,2.7654,180.95,180.92,2.7656]
[1730195586517,8.70481466,180.95,180.92,2.7656]
[1730195586912,8.70481466,180.95,180.89,5.93941466]
[1730195586913,5.93941466,180.95,180.89,5.93941466]
[1730195587105,8.70501466,180.93,180.9,2.766]
[1730195587309,62.1911,180.99,180.86,5.93941466]
[1730195587310,5.93941466,180.91,180.86,5.93941466]
[1730195587510,3.94,180.9,180.86,5.93941466]
[1730195587710,3.94,180.9,180.89,2.7661]
[1730195587911,3.94,180.9,180.83,3.7514]
[1730195588106,3.94,180.9,180.85,5.93941466]
[1730195588314,6.7061,180.9,180.85,5.93941466]
[1730195588819,67.7204,180.99,180.87,5.93941466]
[1730195589015,2.7656,180.93,180.9,2.7659]
[1730195589223,3.94,180.92,180.89,5.93941466]
[1730195589920,2.7654,180.94,180.91,2.7657]
[1730195590217,2.7654,180.94,180.89,5.93941466]
[1730195590218,3.94,180.93,180.89,5.93941466]
[1730195590615,3.94,180.93,180.92,2.7657]
[1730195594620,62.1911,180.99,180.96,2.765]
[1730195594813,3.94,180.98,180.94,5.93941466]
[1730195595217,6.7049,180.98,180.95,2.7651]
[1730195595423,126.99914185,181.04,180.95,5.93941466]
[1730195595617,9.87941466,181.03,180.97,5.93941466]
[1730195595925,2.7647,180.99,180.94,5.93941466]
[1730195596426,3.94,180.98,180.95,2.7651]
[1730195596632,3.94,180.98,180.96,5.93941466]
[1730195596922,126.99914185,181.04,181.0,2.7644]
[1730195597125,3.94,181.03,181.0,2.7644]
[1730195597323,6.7041,181.03,180.99,8.70391466]
[1730195597718,3.94,181.03,180.99,2.7645]
[1730195597924,2.7642,181.02,180.99,8.70391466]
[1730195598121,126.99914185,181.04,180.99,5.93941466]
[1730195598321,3.94,181.03,181.02,2.764]
[1730195598520,3.94,181.03,181.01,5.93941466]
[1730195599326,3.94,181.03,181.01,8.70361466]
[1730195599522,2.7638,181.05,181.01,8.70361466]
[1730195599732,3.94,181.04,181.01,8.70361466]
[1730195600821,3.94,181.04,181.02,2.7641]
[1730195601230,3.94,181.04,181.01,5.93941466]
[1730195601626,3.94,181.04,181.03,2.764]
[1730195602729,3.94,181.04,181.01,2.7642]
[1730195604229,6.7039,181.04,181.01,2.7642]
[1730195608131,2.7641,181.03,180.99,8.70391466]
[1730195608630,5.93941466,181.03,180.97,5.93941466]
[1730195608925,2.7643,181.01,180.98,2.7647]
[1730195609130,3.94,181.0,180.98,2.7647]
[1730195609633,6.7045,181.0,180.98,2.7647]
[1730195609830,6.7045,181.0,180.97,5.93941466]
[1730195610533,6.7045,181.0,180.97,8.70431466]
[1730195611433,2.7647,180.99,180.97,5.93941466]
[1730195614632,2.7647,180.99,180.96,2.765]
[1730195617839,2.7647,180.99,180.96,8.70441466]
[1730195622756,2.7647,180.99,180.97,2.7649]
[1730195643077,2.7647,180.99,180.95,8.70451466]
[1730195643291,3.94,181.0,180.93,5.93941466]
[1730195643292,2.765,180.97,180.93,5.93941466]
[1730195643477,3.92,180.96,180.93,5.93941466]
[1730195644172,3.92,180.96,180.94,2.7653]
[1730195644373,3.92,180.96,180.91,5.93941466]
[1730195644575,2.7652,180.95,180.91,5.93941466]
[1730195645073,2.7652,180.95,180.92,2.7656]
[1730195645473,2.7652,180.95,180.91,5.93941466]
[1730195646274,2.7652,180.95,180.93,2.7655]
[1730195646672,6.6851,180.96,180.91,5.93941466]
[1730195648272,6.6851,180.96,180.94,2.7653]
[1730195650684,6.6851,180.96,180.94,8.70471466]
[1730195650879,2.7647,180.99,180.96,2.765]
[1730195651081,3.92,180.98,180.96,2.765]
[1730195651392,3.92,180.98,180.96,8.70441466]
[1730195651975,3.92,180.97,180.96,8.70441466]
[1730195652381,3.92,180.97,180.91,2.5396]
[1730195652576,7.20861466,181.01,180.95,5.93941466]
[1730195652788,4.0336,181.01,180.98,2.7647]
[1730195653088,5.93941466,181.02,180.96,5.93941466]
[1730195653089,3.92,181.0,180.96,5.93941466]
[1730195653482,6.6845,181.0,180.97,2.7648]
[1730195658890,2.7647,180.99,180.96,2.765]
[1730195659087,5.93941466,180.99,180.93,5.93941466]
[1730195660397,2.7649,180.97,180.93,5.93941466]
[1730195660593,3.92,180.96,180.93,5.93941466]
[1730195661298,9.85941466,180.96,180.91,5.93941466]
[1730195662296,2.7653,180.95,180.91,5.93941466]
[1730195663200,6.6852,180.96,180.93,2.7654]
[1730195663394,6.6852,180.96,180.93,8.70481466]
[1730195665101,2.5374,180.99,180.86,6.7363]
[1730195665102,1.2657,180.99,180.95,5.93941466]
[1730195665293,6.6848,180.98,180.96,2.765]
[1730195666101,6.6848,180.98,180.95,8.70451466]
[1730195668404,6.6848,180.98,180.96,2.7651]
[1730195668788,6.6848,180.98,180.95,5.93941466]
[1730195668993,3.92,180.97,180.96,5.93941466]
[1730195669701,3.92,180.97,180.96,8.70451466]
[1730195670394,1.2103,181.05,180.99,2.7646]
[1730195670698,9.83941466,181.04,180.99,8.70401466]
[1730195670895,2.7643,181.01,180.99,8.70401466]
[1730195671100,3.9,181.0,180.99,8.70401466]
[1730195672199,2.7641,181.03,181.0,2.7644]
[1730195672401,3.9,181.02,181.0,8.70381466]
[1730195673308,3.9,181.02,181.0,5.93941466]
[1730195673503,3.9,181.02,181.01,2.7643]